bitfinex/quotes_SOLUSD_20251116
["timestamp","ask_amount","ask_price","bid_price","bid_amount"]
[1763310300970,23.2712,136.61,136.58,0.1]
[1763310301164,30.71072836,136.61,136.58,0.1]
[1763310301393,23.2712,136.61,136.58,0.1]
[1763310301576,0.62,136.6,136.58,0.1]
[1763310301778,8.05952836,136.6,136.58,0.1]
[1763310302292,22.6512,136.59,136.58,0.1]
[1763310302491,22.6512,136.62,136.58,8.25952836]
[1763310302694,22.6512,136.62,136.58,7.53952836]
[1763310302695,22.6512,136.6,136.58,7.53952836]
[1763310303072,5.85874388,136.67,136.59,8.15952836]
[1763310303271,22.6512,136.63,136.61,7.43952836]
[1763310303778,5.85874388,136.68,136.62,8.15952836]
[1763310304097,0.62,136.69,136.62,0.72]
[1763310304301,0.62,136.69,136.65,7.43952836]
[1763310304595,22.6512,136.67,136.65,7.43952836]
[1763310304796,22.6512,136.67,136.65,12.95811541]
[1763310304967,6.47874388,136.73,136.66,13.67811541]
[1763310305173,22.6512,136.71,136.69,12.95811541]
[1763310305374,0.62,136.73,136.69,12.95811541]
[1763310305573,22.6512,136.71,136.69,12.95811541]
[1763310305885,22.6512,136.71,136.7,12.95811541]
[1763310306079,5.85874388,136.74,136.7,12.95811541]
[1763310306272,5.85874388,136.75,136.72,12.95811541]
[1763310306473,0.62,136.76,136.66,9.78882769]
[1763310306474,5.85874388,136.76,136.73,12.95811541]
[1763310306781,19.43685929,136.76,136.71,12.95811541]
[1763310306977,22.6512,136.75,136.72,12.95811541]
[1763310307172,22.6512,136.75,136.67,0.72]
[1763310307494,22.6512,136.75,136.71,12.95811541]
[1763310307703,22.6512,136.75,136.72,12.95811541]
[1763310308002,13.57811541,136.74,136.62,22.6512]
[1763310308169,22.6512,136.7,136.68,12.95811541]
[1763310308504,22.6512,136.7,136.63,10.50882769]
[1763310308809,22.6512,136.7,136.63,0.72]
[1763310308810,12.95811541,136.69,136.63,0.72]
[1763310308974,42.08805929,136.7,136.65,12.95811541]
[1763310309172,22.6512,136.66,136.58,0.1]
[1763310309486,22.6512,136.67,136.62,12.95811541]
[1763310309671,0.62,136.66,136.62,12.95811541]
[1763310310193,0.62,136.66,136.59,0.72]
[1763310310194,22.6512,136.65,136.64,12.95811541]
[1763310310817,22.6512,136.66,136.63,12.95811541]
[1763310310990,22.6512,136.65,136.63,12.95811541]
[1763310311167,23.2712,136.65,136.61,12.95811541]
[1763310311471,13.57811541,136.64,136.58,0.1]
[1763310311674,22.6512,136.6,136.58,13.05811541]
[1763310311873,22.6512,136.6,136.58,0.1]
[1763310312073,23.2712,136.59,136.58,0.1]
[1763310312378,50.0,136.58,136.56,0.1]
[1763310312574,22.6512,136.58,136.56,13.05811541]
[1763310312794,23.1712,136.58,136.56,0.1]
[1763310312975,22.6512,136.57,136.56,0.1]
[1763310313780,5.85874388,136.61,136.56,13.72811541]
[1763310313984,22.6512,136.59,136.58,12.95811541]
[1763310314519,27.30410525,136.59,136.58,12.95811541]
[1763310315019,27.30410525,136.59,136.58,13.63811541]
[1763310315020,4.65290525,136.59,136.58,13.63811541]
[1763310315232,4.65290525,136.64,136.58,13.63811541]
[1763310315399,4.65290525,136.64,136.61,12.95811541]
[1763310315400,5.85874388,136.64,136.61,12.95811541]
[1763310315720,28.50994388,136.64,136.57,0.68]
[1763310315923,22.6512,136.62,136.59,12.95811541]
[1763310316091,27.30410525,136.61,136.6,12.95811541]
[1763310316508,27.30410525,136.61,136.56,0.78]
[1763310316811,4.65290525,136.6,136.56,0.78]
[1763310317587,4.65290525,136.6,136.56,0.1]
[1763310317938,23.1712,136.59,136.56,0.1]
[1763310318129,4.65290525,136.58,136.56,0.1]
[1763310318430,4.65290525,136.58,136.57,13.63811541]
[1763310318721,4.65290525,136.58,136.57,12.95811541]
[1763310318888,27.30410525,136.58,136.56,0.1]
[1763310319092,22.6512,136.58,136.57,12.95811541]
[1763310319309,27.31375685,136.58,136.57,12.95811541]
[1763310319503,4.66255685,136.58,136.57,13.63811541]
[1763310319819,6.37874388,136.62,136.57,12.95811541]
[1763310320122,5.85874388,136.6,136.57,12.95811541]
[1763310320420,22.6512,136.57,136.56,0.1]
[1763310320623,4.66255685,136.57,136.56,0.1]
[1763310320793,4.66255685,136.57,136.53,0.1]
[1763310320794,59.78882769,136.54,136.53,0.1]
[1763310320991,72.6512,136.51,136.45,13.05811541]
[1763310321303,4.66255685,136.5,136.46,12.95811541]
[1763310321716,50.0,136.47,136.45,0.1]
[1763310322042,4.66255685,136.46,136.45,0.1]
[1763310322238,22.53113961,136.45,136.39,0.41061738]
[1763310322544,22.53113961,136.45,136.42,12.95811541]
[1763310322545,4.66255685,136.44,136.42,12.95811541]
[1763310322718,4.66255685,136.44,136.43,12.95811541]
[1763310322922,4.66255685,136.47,136.43,12.95811541]
[1763310323122,4.68255685,136.48,136.43,12.95811541]
[1763310323322,23.45753838,136.48,136.4,0.68]
[1763310323526,55.81686612,136.46,136.39,0.41061738]
[1763310323736,4.66255685,136.45,136.43,12.95811541]
[1763310324038,7.75582149,136.48,136.42,12.95811541]
[1763310324039,60.47942297,136.47,136.42,12.95811541]
[1763310324240,22.6512,136.44,136.41,12.95811541]
[1763310324421,4.54250522,136.43,136.41,12.95811541]
[1763310324833,22.6512,136.42,136.4,12.95811541]
[1763310325231,22.6512,136.42,136.37,0.68]
[1763310325455,22.6512,136.41,136.37,0.68]
[1763310325629,22.6512,136.4,136.39,12.95811541]
[1763310326026,22.6512,136.4,136.36,0.68]
[1763310326221,22.6512,136.41,136.36,0.68]
[1763310326549,22.6512,136.4,136.38,12.95811541]
[1763310326921,0.02,136.43,136.38,12.95811541]
[1763310326922,22.6512,136.41,136.39,12.95811541]
[1763310327247,72.6512,136.41,136.32,1.10490222]
[1763310327434,22.47112261,136.37,136.32,0.68]
[1763310327619,5.81686612,136.42,136.36,12.95811541]
[1763310327824,19.59999999,136.52,136.41,12.95811541]
[1763310327825,5.81686612,136.47,136.41,12.95811541]
[1763310328145,5.81686612,136.47,136.35,22.6512]
[1763310328146,50.0,136.46,136.42,12.95811541]
[1763310328337,50.0,136.44,136.41,12.95811541]
[1763310328520,50.0,136.44,136.4,12.95811541]
[1763310328715,50.0,136.44,136.36,0.68]
[1763310328927,9.78882769,136.45,136.41,12.95811541]
[1763310329132,18.77498153,136.43,136.36,0.68]
[1763310329343,22.6512,136.42,136.39,12.95811541]
[1763310329544,22.6512,136.41,136.39,12.95811541]
[1763310329861,22.6512,136.41,136.4,12.95811541]
[1763310330040,50.0,136.44,136.4,12.95811541]
[1763310330243,22.6512,136.43,136.42,12.95811541]
[1763310330651,50.0,136.46,136.42,12.95811541]
[1763310330835,72.7469431,136.44,136.4,12.95811541]
[1763310331157,22.6512,136.41,136.39,12.95811541]
[1763310331360,22.6512,136.41,136.32,0.68]
[1763310331535,22.6512,136.41,136.37,12.95811541]
[1763310331536,22.6512,136.39,136.37,12.95811541]
[1763310331860,22.6512,136.37,136.36,12.95811541]
[1763310332161,22.6512,136.37,136.31,0.35765]
[1763310332368,50.0,136.32,136.31,0.35765]
[1763310332559,50.0,136.34,136.31,0.35765]
[1763310333360,50.0,136.36,136.31,0.35765]
[1763310333568,12.97811541,136.35,136.31,0.35765]
[1763310333768,59.78882769,136.38,136.31,0.35765]
[1763310333769,55.81686612,136.38,136.33,12.95811541]
[1763310334083,7.75582149,136.4,136.34,0.68]
[1763310334084,50.0,136.4,136.34,0.68]
[1763310334374,50.0,136.4,136.36,12.95811541]
[1763310334875,22.6512,136.39,136.36,12.95811541]
[1763310335361,22.6512,136.37,136.35,12.95811541]
[1763310336248,50.0,136.42,136.36,13.63811541]
[1763310336451,5.81686612,136.44,136.39,12.95811541]
[1763310336452,62.95811541,136.44,136.39,12.95811541]
[1763310336649,22.6512,136.4,136.37,0.68]
[1763310336846,22.6512,136.4,136.38,12.95811541]
[1763310337053,22.6512,136.4,136.31,0.35765]
[1763310337252,22.6512,136.36,136.34,12.95811541]
[1763310337571,22.6512,136.37,136.35,12.95811541]
[1763310337738,22.6512,136.37,136.31,0.35765]
[1763310337936,22.6512,136.39,136.35,12.95811541]
[1763310338446,22.6512,136.37,136.35,12.95811541]
[1763310338655,22.6512,136.37,136.31,0.35765]
[1763310338656,85.60931541,136.37,136.32,12.95811541]
[1763310338857,22.53114841,136.33,136.31,0.35765]
[1763310339174,62.95811541,136.35,136.31,0.35765]
[1763310339354,62.97811541,136.35,136.31,0.35765]
[1763310339555,50.02,136.35,136.31,0.35765]
[1763310339744,62.97811541,136.35,136.31,0.35765]
[1763310339948,62.95811541,136.35,136.31,0.35765]
[1763310340164,12.95811541,136.35,136.31,0.35765]
[1763310340762,22.6512,136.32,136.31,0.35765]
[1763310341152,72.6512,136.32,136.31,0.35765]
[1763310341468,22.6512,136.33,136.31,13.31576541]
[1763310341668,22.6512,136.33,136.31,13.99576541]
[1763310341867,22.6512,136.33,136.31,0.35765]
[1763310342250,22.6512,136.32,136.31,0.35765]
[1763310342768,22.6512,136.32,136.31,13.99576541]
[1763310342994,22.6512,136.32,136.31,0.35765]
[1763310343436,22.6512,136.32,136.31,13.31576541]
[1763310343437,20.71692784,136.32,136.31,13.31576541]
[1763310343640,50.0,136.39,136.31,13.31576541]
[1763310343641,9.78882769,136.39,136.31,14.01576541]
[1763310343860,17.51213999,136.39,136.34,12.95811541]
[1763310344069,12.95811541,136.41,136.36,12.95811541]
[1763310344681,12.95811541,136.42,136.37,12.95811541]
[1763310344882,0.02,136.43,136.38,0.7]
[1763310344883,12.95811541,136.43,136.38,0.7]
[1763310345168,12.95811541,136.44,136.39,12.95811541]
[1763310345372,12.95811541,136.44,136.38,12.95811541]
[1763310345569,0.02,136.45,136.4,12.95811541]
[1763310345570,12.95811541,136.45,136.4,12.95811541]
[1763310345871,50.0,136.46,136.41,12.95811541]
[1763310345872,12.95811541,136.46,136.41,12.95811541]
[1763310346060,12.95811541,136.47,136.42,12.95811541]
[1763310346261,50.0,136.48,136.37,10.48882769]
[1763310346464,12.95811541,136.44,136.37,0.7]
[1763310346665,12.95811541,136.44,136.39,12.95811541]
[1763310346666,22.6512,136.43,136.39,12.95811541]
[1763310346855,12.95811541,136.45,136.4,12.95811541]
[1763310347057,22.6512,136.42,136.4,13.65811541]
[1763310347257,12.95811541,136.45,136.35,9.78882769]
[1763310347258,62.95811541,136.46,136.41,13.65811541]
[1763310347585,12.95811541,136.47,136.42,12.95811541]
[1763310347758,12.95811541,136.47,136.42,13.65811541]
[1763310347956,50.0,136.5,136.38,9.78882769]
[1763310348158,35.60931541,136.48,136.43,12.95811541]
[1763310348364,12.95811541,136.48,136.43,12.95811541]
[1763310348563,12.95811541,136.48,136.44,0.7]
[1763310348967,35.60931541,136.47,136.43,12.95811541]
[1763310349162,22.6512,136.47,136.43,13.65811541]
[1763310349472,22.6512,136.49,136.44,0.7]
[1763310349778,50.0,136.5,136.44,0.7]
[1763310350074,12.95811541,136.46,136.44,0.7]
[1763310350774,35.60931541,136.47,136.44,0.7]
[1763310352152,67.6,136.52,136.44,13.65811541]
[1763310352372,35.60931541,136.49,136.45,0.7]
[1763310353380,12.95811541,136.48,136.45,0.7]
[1763310354494,35.60931541,136.47,136.39,174.78882769]
[1763310354661,35.60931541,136.47,136.43,0.7]
[1763310354662,12.95811541,136.46,136.43,0.7]
[1763310355196,22.6512,136.47,136.43,13.65811541]
[1763310355355,17.62,136.52,136.44,12.95811541]
[1763310355561,35.60931541,136.49,136.44,13.65811541]
[1763310355763,35.60931541,136.49,136.45,0.7]
[1763310356488,12.95811541,136.48,136.45,0.7]
[1763310356862,35.60931541,136.48,136.45,0.7]
[1763310357288,22.6512,136.48,136.45,0.7]
[1763310357593,35.60931541,136.48,136.45,0.7]
[1763310358298,22.6512,136.48,136.45,0.7]
[1763310358767,22.6512,136.48,136.46,12.95811541]
[1763310358962,22.6512,136.48,136.47,0.7]
[1763310359316,35.60931541,136.48,136.43,12.95811541]
[1763310359457,22.6512,136.48,136.44,13.65811541]
[1763310359657,17.6,136.52,136.46,12.95811541]
[1763310359857,12.95811541,136.51,136.47,0.7]
[1763310360060,35.60931541,136.51,136.47,0.7]
[1763310360300,12.95811541,136.5,136.47,0.7]
[1763310360796,55.74052661,136.55,136.47,13.65811541]
[1763310360982,55.74052661,136.55,136.48,12.95811541]
[1763310360983,50.0,136.55,136.48,12.95811541]
[1763310361192,5.74052661,136.56,136.49,13.65811541]
[1763310361398,5.74052661,136.56,136.52,12.95811541]
[1763310361566,0.2,136.6,136.53,0.7]
[1763310361766,12.95811541,136.57,136.53,0.7]
[1763310361966,5.94052661,136.6,136.53,0.7]
[1763310362184,12.95811541,136.56,136.53,0.7]
[1763310362502,35.60931541,136.54,136.5,0.7]
[1763310362677,12.95811541,136.52,136.5,0.7]
[1763310362868,12.95811541,136.51,136.48,0.7]
[1763310363063,22.6512,136.53,136.48,0.7]
[1763310363289,22.6512,136.53,136.47,12.95811541]
[1763310363290,12.95811541,136.49,136.46,0.7]
[1763310363568,22.6512,136.51,136.46,0.7]
[1763310364269,22.6512,136.51,136.47,12.95811541]
[1763310364496,35.60931541,136.51,136.47,12.95811541]
[1763310364700,35.60931541,136.51,136.48,0.7]
[1763310364867,22.6512,136.51,136.48,0.7]
[1763310365069,7.46185193,136.51,136.48,0.7]
[1763310365297,30.11305193,136.51,136.48,0.7]
[1763310366087,7.46185193,136.54,136.49,7.46185193]
[1763310366280,5.74052661,136.56,136.49,7.46185193]
[1763310366281,7.46185193,136.52,136.49,0.7]
[1763310366598,22.6512,136.53,136.5,0.7]
[1763310366970,7.46185193,136.55,136.5,8.16185193]
[1763310367173,22.6512,136.55,136.5,8.16185193]
[1763310367377,7.46185193,136.55,136.51,8.16185193]
[1763310367781,30.11305193,136.55,136.52,0.7]
[1763310367983,22.6512,136.55,136.52,0.7]
[1763310368186,7.46185193,136.53,136.49,0.7]
[1763310368595,7.46185193,136.53,136.49,8.16185193]
[1763310368974,30.11305193,136.53,136.5,0.7]
[1763310369181,22.6512,136.53,136.5,0.7]
[1763310369885,7.46185193,136.54,136.5,8.16185193]
[1763310370400,7.46185193,136.54,136.51,0.7]
[1763310370999,7.46185193,136.55,136.51,8.16185193]
[1763310371199,30.11305193,136.56,136.51,8.16185193]
[1763310371397,7.46185193,136.55,136.52,0.7]
[1763310371602,22.6512,136.55,136.52,0.7]
[1763310372493,7.46185193,136.59,136.52,0.7]
[1763310372692,7.46185193,136.59,136.54,7.46185193]
[1763310372918,0.2,136.6,136.55,7.46185193]
[1763310373124,0.2,136.6,136.56,7.46185193]
[1763310373492,0.2,136.6,136.57,0.7]
[1763310374400,22.6512,136.59,136.57,8.16185193]
[1763310375227,8.17185193,136.59,136.54,0.65]
[1763310375395,7.66185193,136.6,136.55,7.46185193]
[1763310375730,0.2,136.6,136.57,7.46185193]
[1763310376241,0.2,136.6,136.58,8.11185193]
[1763310376395,0.2,136.6,136.59,7.46185193]
[1763310376909,0.2,136.6,136.58,8.11185193]
[1763310377733,0.2,136.6,136.59,7.46185193]
[1763310378414,0.2,136.6,136.59,8.11185193]
[1763310378815,0.2,136.63,136.6,9.78882769]
[1763310379050,0.2,136.63,136.62,17.25067962]
[1763310379554,0.2,136.63,136.62,17.90067962]
[1763310381148,0.2,136.63,136.57,9.32209845]
[1763310381149,0.2,136.63,136.58,9.78882769]
[1763310381319,7.66185193,136.63,136.59,7.46185193]
[1763310381643,0.2,136.63,136.59,8.11185193]
[1763310382145,0.2,136.63,136.6,8.11185193]
[1763310382439,0.2,136.63,136.61,7.46185193]
[1763310382744,0.2,136.63,136.61,8.11185193]
[1763310383238,0.2,136.63,136.62,0.65]
[1763310383420,0.2,136.63,136.61,7.46185193]
[1763310383615,0.2,136.63,136.61,8.11185193]
[1763310384017,0.2,136.63,136.61,7.46185193]
[1763310384326,0.2,136.63,136.62,0.65]
[1763310384518,0.2,136.63,136.62,8.11185193]
[1763310384718,0.2,136.63,136.6,8.11185193]
[1763310385045,0.2,136.63,136.61,0.65]
[1763310385348,0.2,136.63,136.62,7.46185193]
[1763310385554,0.2,136.63,136.62,8.11185193]
[1763310385768,0.2,136.63,136.61,7.46185193]
[1763310385935,0.2,136.63,136.62,7.46185193]
[1763310386331,0.2,136.63,136.58,7.46185193]
[1763310386332,8.37185193,136.63,136.58,7.46185193]
[1763310386669,7.66185193,136.63,136.59,0.65]
[1763310386856,7.46185193,136.62,136.59,0.65]
[1763310387037,7.66185193,136.63,136.59,0.65]
[1763310387241,7.46185193,136.62,136.57,8.11185193]
[1763310387429,0.2,136.63,136.6,7.46185193]
[1763310387634,0.2,136.63,136.59,7.46185193]
[1763310387834,7.46185193,136.61,136.55,0.65]
[1763310388133,7.46185193,136.61,136.56,7.46185193]
[1763310388455,0.91,136.63,136.57,0.65]
[1763310388666,0.2,136.63,136.58,7.46185193]
[1763310388844,7.66185193,136.63,136.58,7.46185193]
[1763310389044,7.66185193,136.63,136.59,0.65]
[1763310389345,7.66185193,136.63,136.61,7.46185193]
[1763310389346,0.2,136.63,136.61,7.46185193]
[1763310389737,0.2,136.63,136.62,8.11185193]
[1763310389963,0.2,136.63,136.62,0.65]
[1763310390654,0.2,136.63,136.61,7.46185193]
[1763310390842,0.2,136.63,136.61,8.11185193]
[1763310391345,0.2,136.63,136.61,7.46185193]
[1763310391553,7.66185193,136.63,136.51,9.78882769]
[1763310391738,0.2,136.63,136.58,17.25067962]
[1763310391948,0.2,136.63,136.59,0.65]
[1763310392148,0.2,136.63,136.6,7.46185193]
[1763310392353,0.2,136.63,136.61,8.11185193]
[1763310392572,0.2,136.63,136.62,7.46185193]
[1763310392881,0.2,136.63,136.61,0.65]
[1763310394439,0.2,136.63,136.61,8.11185193]
[1763310394641,0.2,136.63,136.62,7.46185193]
[1763310394870,0.2,136.63,136.62,8.11185193]
[1763310395385,0.2,136.63,136.61,7.46185193]
[1763310395687,0.2,136.63,136.61,8.11185193]
[1763310396362,0.2,136.63,136.61,0.65]
[1763310396564,0.2,136.63,136.61,8.11185193]
[1763310397669,0.2,136.63,136.62,0.65]
[1763310397846,0.2,136.63,136.61,8.11185193]
[1763310399648,8.37185193,136.63,136.57,0.65]
[1763310399866,7.46185193,136.62,136.57,8.11185193]
[1763310400072,8.17185193,136.62,136.57,7.46185193]
[1763310400278,0.71,136.61,136.57,7.46185193]
[1763310400850,8.17185193,136.61,136.55,0.65]
[1763310401045,8.17185193,136.61,136.56,7.46185193]
[1763310401266,8.17185193,136.61,136.56,8.11185193]
[1763310401444,0.71,136.61,136.57,8.11185193]
[1763310402554,0.71,136.61,136.57,0.65]
[1763310402776,30.11305193,136.62,136.57,8.11185193]
[1763310403082,30.82305193,136.62,136.57,8.11185193]
[1763310404171,0.2,136.63,136.6,7.46185193]
[1763310404686,0.2,136.63,136.61,8.16185193]
[1763310405376,0.2,136.63,136.62,0.7]
[1763310405575,0.2,136.63,136.61,8.16185193]
[1763310406549,0.2,136.63,136.61,7.46185193]
[1763310407575,0.2,136.63,136.6,0.7]
[1763310407872,0.2,136.63,136.61,7.46185193]
[1763310408670,0.2,136.63,136.61,8.16185193]
[1763310409399,0.2,136.63,136.62,8.16185193]
[1763310409762,0.2,136.63,136.61,7.46185193]
[1763310410147,0.2,136.63,136.6,8.16185193]
[1763310410574,0.2,136.63,136.61,8.16185193]
[1763310411045,0.2,136.63,136.62,8.16185193]
[1763310411249,0.2,136.63,136.62,17.95067962]
[1763310411845,0.2,136.63,136.62,17.25067962]
[1763310412079,0.2,136.63,136.61,7.46185193]
[1763310412380,0.2,136.63,136.6,7.46185193]
[1763310412552,0.2,136.63,136.6,8.16185193]
[1763310412977,0.2,136.63,136.61,8.16185193]
[1763310413475,0.2,136.63,136.61,7.46185193]
[1763310413863,0.2,136.63,136.59,0.7]
[1763310414060,0.2,136.63,136.6,8.16185193]
[1763310414781,0.9,136.63,136.59,7.46185193]
[1763310414964,0.2,136.63,136.59,8.16185193]
[1763310415581,0.2,136.63,136.6,7.46185193]
[1763310415794,0.2,136.63,136.61,7.46185193]
[1763310415980,0.2,136.63,136.61,8.16185193]
[1763310416488,0.2,136.63,136.61,7.46185193]
[1763310416694,0.2,136.63,136.61,0.7]
[1763310416872,0.2,136.63,136.6,7.46185193]
[1763310417190,0.2,136.63,136.62,7.46185193]
[1763310417370,0.2,136.63,136.62,8.16185193]
[1763310417767,0.2,136.63,136.62,17.95067962]
[1763310419076,0.2,136.63,136.62,10.48882769]
[1763310419421,0.2,136.63,136.62,25.27025215]
[1763310419699,0.2,136.63,136.62,17.95067962]
[1763310420196,0.2,136.63,136.62,25.27025215]
[1763310421394,0.2,136.63,136.62,17.95067962]
[1763310421593,0.2,136.63,136.62,17.25067962]
[1763310421795,0.2,136.63,136.56,32.11305192]
[1763310421796,0.2,136.63,136.6,17.25067962]
[1763310422091,0.2,136.63,136.6,17.95067962]
[1763310422267,0.2,136.63,136.6,9.78882769]
[1763310422468,0.2,136.63,136.53,0.7]
[1763310422469,7.46185193,136.61,136.53,0.7]
[1763310422703,22.6512,136.61,136.54,7.46185193]
[1763310422995,22.6512,136.61,136.57,7.46185193]
[1763310423206,13.42715014,136.63,136.58,7.46185193]
[1763310423404,0.2,136.63,136.62,7.46185193]
[1763310423575,0.2,136.63,136.59,0.7]
[1763310423775,0.2,136.63,136.59,23.3512]
[1763310424082,5.76529821,136.7,136.65,22.6512]
[1763310424277,0.7,136.73,136.69,7.46185193]
[1763310424482,5.96529821,136.74,136.7,7.46185193]
[1763310424686,0.2,136.74,136.68,9.78882769]
[1763310424904,30.31305193,136.74,136.69,7.46185193]
[1763310425085,7.46185193,136.7,136.62,0.7]
[1763310425287,7.46185193,136.69,136.65,9.78882769]
[1763310425598,0.7,136.68,136.65,9.78882769]
[1763310425778,7.46185193,136.69,136.63,0.7]
[1763310425978,22.6512,136.68,136.65,9.78882769]
[1763310426387,22.6512,136.68,136.6,0.7]
[1763310426388,0.7,136.67,136.6,0.7]
[1763310426606,7.46185193,136.63,136.56,0.7]
[1763310426929,22.6512,136.64,136.54,12.97499614]
[1763310426930,5.76529821,136.62,136.54,12.97499614]
[1763310427115,30.40702149,136.64,136.56,12.97499614]
[1763310427116,12.97499614,136.61,136.56,12.97499614]
[1763310427409,32.6752872,136.63,136.58,9.78882769]
[1763310427410,12.97499614,136.62,136.58,9.78882769]
[1763310427709,0.7,136.62,136.58,9.78882769]
[1763310427891,31.68619614,136.63,136.58,9.78882769]
[1763310428085,32.38619614,136.63,136.58,10.48882769]
[1763310428292,0.7,136.62,136.58,9.78882769]
[1763310428704,13.67499614,136.62,136.56,9.78882769]
[1763310428894,13.67499614,136.64,136.59,9.78882769]
[1763310429205,0.7,136.64,136.59,9.78882769]
[1763310429378,13.67499614,136.64,136.59,10.48882769]
[1763310429582,0.7,136.64,136.59,10.48882769]
[1763310429880,9.3240872,136.65,136.61,9.78882769]
[1763310430100,0.7,136.67,136.61,22.76382383]
[1763310430101,19.44029435,136.67,136.61,22.76382383]
[1763310430304,19.44029435,136.67,136.62,12.97499614]
[1763310430305,13.67499614,136.67,136.62,12.97499614]
[1763310430507,36.32619614,136.67,136.62,12.97499614]
[1763310430736,6.23602196,136.69,136.65,12.97499614]
[1763310430923,15.08938541,136.71,136.66,23.46382383]
[1763310431109,51.41558155,136.71,136.66,22.76382383]
[1763310431312,0.7,136.7,136.66,12.97499614]
[1763310431624,0.7,136.7,136.64,12.97499614]
[1763310431625,12.97499614,136.69,136.64,12.97499614]
[1763310431924,0.7,136.7,136.61,23.46382383]
[1763310431925,12.97499614,136.66,136.61,23.46382383]
[1763310432110,12.97499614,136.65,136.61,0.7]
[1763310432633,12.97499614,136.67,136.61,13.67499614]
[1763310433016,12.97499614,136.68,136.62,12.97499614]
[1763310433200,12.97499614,136.71,136.66,22.76382383]
[1763310433525,22.6512,136.69,136.66,9.78882769]
[1763310433728,22.6512,136.69,136.66,10.44882769]
[1763310434409,35.62619614,136.7,136.61,7.31999443]
[1763310434717,35.62619614,136.7,136.64,12.97499614]
[1763310434913,12.97499614,136.69,136.64,12.97499614]
[1763310435121,22.6512,136.69,136.65,0.66]
[1763310435323,22.6512,136.69,136.66,12.97499614]
[1763310435633,22.6512,136.69,136.66,10.44882769]
[1763310435834,22.6512,136.69,136.66,23.42382383]
[1763310436003,22.6512,136.69,136.66,9.78882769]
[1763310436504,22.6512,136.69,136.66,10.44882769]
[1763310436700,22.6512,136.69,136.66,9.78882769]
[1763310436954,22.6512,136.69,136.65,12.97499614]
[1763310437142,22.6512,136.69,136.65,9.78882769]
[1763310437501,22.6512,136.69,136.65,23.42382383]
[1763310437740,22.6512,136.69,136.65,13.63499614]
[1763310437914,22.6512,136.69,136.64,9.78882769]
[1763310437915,22.6512,136.69,136.66,13.63499614]
[1763310438107,19.44029435,136.72,136.66,13.63499614]
[1763310438320,36.32619614,136.71,136.65,12.97499614]
[1763310438518,12.97499614,136.7,136.65,12.97499614]
[1763310438722,12.97499614,136.69,136.64,10.44882769]
[1763310438917,12.97499614,136.69,136.64,23.42382383]
[1763310439134,12.97499614,136.69,136.65,0.66]
[1763310439440,19.44029435,136.7,136.65,0.66]
[1763310439644,19.54439274,136.7,136.65,0.66]
[1763310440051,13.67499614,136.7,136.65,0.66]
[1763310440359,22.6512,136.69,136.66,12.97499614]
[1763310440769,22.6512,136.69,136.66,0.66]
[1763310440938,22.6512,136.69,136.6,42.94672831]
[1763310441137,22.6512,136.69,136.64,12.97499614]
[1763310441138,36.32619614,136.69,136.64,12.97499614]
[1763310441327,13.67499614,136.68,136.63,9.78882769]
[1763310441526,0.7,136.68,136.63,22.76382383]
[1763310441735,0.7,136.68,136.64,0.66]
[1763310441934,13.67499614,136.68,136.63,13.63499614]
[1763310442133,13.67499614,136.68,136.63,0.66]
[1763310442545,0.7,136.67,136.62,12.97499614]
[1763310442740,12.97499614,136.68,136.62,13.63499614]
[1763310443059,13.67499614,136.68,136.62,13.63499614]
[1763310443554,35.62619614,136.69,136.64,12.97499614]
[1763310443738,22.6512,136.69,136.64,12.97499614]
[1763310443941,22.6512,136.69,136.65,0.66]
[1763310444761,13.67499614,136.68,136.61,0.66]
[1763310444955,13.67499614,136.68,136.62,12.97499614]
[1763310445145,13.67499614,136.68,136.63,12.97499614]
[1763310445655,13.67499614,136.68,136.63,13.63499614]
[1763310446054,41.49559274,136.69,136.63,12.97499614]
[1763310446240,41.49559274,136.69,136.64,0.66]